bitfinex-derivatives/quotes_ETHF0:USTF0_20240917
["timestamp","ask_amount","ask_price","bid_price","bid_amount"]
[1726572261616,0.98328,2312.1,2311.8,3.72832]
[1726572261911,0.5508,2312.1,2311.9,0.43251]
[1726572262119,0.43245,2312.3,2312.0,3.13249]
[1726572262316,0.57,2312.3,2312.1,0.43248]
[1726572262510,0.57,2312.3,2312.0,2.7]
[1726572262812,0.57,2312.3,2312.1,1.1754]
[1726572263018,0.57,2312.3,2311.9,1.13449472]
[1726572263019,0.43249,2312.1,2311.9,1.13449472]
[1726572263213,0.5813,2312.0,2311.7,1.23549472]
[1726572263412,1.01381,2312.0,2311.6,2.31959472]
[1726572263607,0.57,2311.9,2311.6,1.1851]
[1726572263813,0.5758,2311.8,2311.6,0.5897]
[1726572264220,0.5758,2311.8,2311.5,3.64039]
[1726572264420,0.5758,2311.8,2311.5,3.2078]
[1726572264819,0.5758,2311.8,2311.5,3.64039]
[1726572265115,0.57,2311.9,2311.6,0.43257]
[1726572265317,0.57,2311.9,2311.5,6.34038]
[1726572271018,0.57,2311.9,2311.5,7.47487472]
[1726572272523,0.57,2311.9,2311.6,0.43256]
[1726572274221,0.5813,2312.0,2311.8,0.43252]
[1726572274434,0.5816,2312.3,2311.9,7.0088]
[1726572274737,7.79221,2312.5,2312.2,2.7]
[1726572274738,4.21042,2312.5,2312.2,2.7]
[1726572275034,0.43242,2312.4,2312.2,2.7]
[1726572275425,4.21042,2312.5,2312.2,2.7]
[1726572275624,4.21042,2312.5,2312.2,3.2835]
[1726572276435,0.43243,2312.4,2312.0,2.7]
[1726572276733,0.43243,2312.4,2312.0,3.2835]
[1726572277633,0.43242,2312.4,2312.1,0.43248]
[1726572277821,0.43242,2312.4,2312.0,3.71599]
[1726572278636,0.43244,2312.4,2312.0,3.71599]
[1726572278828,0.5572,2312.3,2312.0,3.71599]
[1726572279630,0.5572,2312.3,2312.1,0.43248]
[1726572280229,0.98966,2312.3,2312.0,3.2835]
[1726572280432,0.43246,2312.2,2312.0,3.2835]
[1726572281434,1.1012,2312.3,2312.0,3.2835]
[1726572282038,0.43246,2312.2,2312.0,3.2835]
[1726572283030,1.53365,2312.3,2312.0,3.71599]
[1726572283932,0.98965,2312.3,2312.0,3.71599]
[1726572284232,0.5572,2312.3,2312.0,3.2835]
[1726572284436,0.5572,2312.3,2312.1,0.43247]
[1726572285834,0.43247,2312.2,2312.0,3.2835]
[1726572286724,0.98966,2312.3,2312.0,3.716]
[1726572287532,0.98966,2312.3,2312.0,6.9238]
[1726572289140,0.98966,2312.3,2312.1,0.43248]
[1726572289330,0.98966,2312.3,2312.0,6.92378]
[1726572289833,0.43247,2312.2,2312.0,3.7913]
[1726572290030,0.43246,2312.2,2312.0,4.2238]
[1726572290225,0.43246,2312.2,2312.0,1.016]
[1726572298636,0.43246,2312.2,2312.0,1.01599]
[1726572301335,0.5702,2312.5,2312.0,3.2835]
[1726572301642,0.5702,2312.5,2312.2,3.13245]
[1726572301643,0.43241,2312.5,2312.2,3.13245]
[1726572301851,3.6402,2312.6,2312.3,0.5366]
[1726572302140,3.6402,2312.6,2312.3,1.0802]
[1726572302442,3.6402,2312.6,2312.4,0.5386]
[1726572302746,1.53008,2312.7,2312.4,3.67102]
[1726572302940,0.43238,2312.7,2312.4,6.87882]
[1726572303139,1.62105,2312.9,2312.5,0.4324]
[1726572303140,0.43236,2312.8,2312.5,0.4324]
[1726572303445,0.43235,2312.8,2312.5,0.4324]
[1726572303745,1.0977,2312.9,2312.6,2.7]
[1726572304046,3.64012,2313.0,2312.7,1.0808]
[1726572306339,0.43233,2312.9,2312.7,1.0808]
[1726572307144,3.64012,2313.0,2312.7,1.51317]
[1726572307343,3.64012,2313.0,2312.8,0.5646]
[1726572308239,0.43233,2312.9,2312.8,0.5646]
[1726572311649,0.43233,2312.9,2312.7,1.0808]
[1726572314445,0.43235,2312.8,2312.7,1.0808]
[1726572314646,3.2078,2313.0,2312.7,1.51316]
[1726572314845,3.2078,2313.0,2312.7,1.0808]
[1726572314846,0.43234,2312.9,2312.7,1.0808]
[1726572318338,0.43235,2312.8,2312.7,1.0808]
[1726572318948,0.43235,2312.8,2312.7,0.43237]
[1726572319454,0.43235,2312.8,2312.6,2.25157]
[1726572319654,3.64015,2312.8,2312.7,0.43237]
[1726572320246,3.64015,2312.8,2312.6,2.25157]
[1726572320544,0.5467,2312.7,2312.6,2.25157]
[1726572323842,3.2078,2312.8,2312.6,2.25157]
[1726572324562,3.64015,2312.8,2312.6,2.25157]
[1726572325156,3.64015,2312.8,2312.6,1.8192]
[1726572325548,3.2078,2312.8,2312.7,0.43237]
[1726572325751,3.2078,2312.8,2312.6,2.25157]
[1726572326355,0.5405,2312.9,2312.6,3.38607472]
[1726572326656,0.97283,2312.9,2312.8,1.25]
[1726572327251,0.5405,2312.9,2312.6,1.8192]
[1726572327454,0.5704,2312.8,2312.6,2.95369472]
[1726572327650,0.5704,2312.8,2312.6,1.8192]
[1726572327855,1.00275,2312.8,2312.6,1.8192]
[1726572328358,0.43241,2312.5,2312.4,1.13449472]
[1726572328553,0.43241,2312.5,2312.3,1.13449472]
[1726572328852,0.43241,2312.5,2312.2,3.92504472]
[1726572328853,0.5773,2312.4,2312.2,3.92504472]
[1726572330759,0.5773,2312.4,2312.3,0.43244]
[1726572330965,4.20558,2312.7,2312.2,7.81739472]
[1726572331151,4.78288,2312.7,2312.6,1.25]
[1726572332666,4.3505,2312.7,2312.4,1.25]
[1726572332868,0.43241,2312.5,2312.4,1.25]
[1726572333457,0.4324,2312.6,2312.4,1.68242]
[1726572337369,4.78288,2312.7,2312.5,2.2048]
[1726572337558,0.43236,2312.8,2312.5,1.7724]
[1726572337753,0.43236,2312.8,2312.7,1.25]
[1726572338863,0.43237,2312.7,2312.6,2.343]
[1726572339065,0.43236,2312.8,2312.6,2.77538]
[1726572339367,1.53434,2312.9,2312.8,1.25]
[1726572340075,1.53433,2312.9,2312.8,1.25]
[1726572340369,1.53433,2312.9,2312.8,1.7753]
[1726572346266,0.96233,2312.9,2312.8,1.7753]
[1726572346478,3.64013,2313.0,2312.8,2.20765]
[1726572346666,3.2078,2313.0,2312.8,1.7753]
[1726572346866,0.43233,2312.9,2312.8,1.7753]
[1726572347371,3.64012,2313.0,2312.8,1.7753]
[1726572347575,0.43233,2312.9,2312.8,2.90979472]
[1726572347869,3.2078,2313.0,2312.8,2.90979472]
[1726572348073,3.2078,2313.0,2312.9,1.25]
[1726572349166,3.2078,2313.0,2312.9,2.38449472]
[1726572349779,3.64011,2313.0,2312.9,2.38449472]
[1726572350478,3.64011,2313.0,2312.9,1.25]
[1726572350775,3.64011,2313.0,2312.8,1.13449472]
[1726572350776,0.43233,2312.9,2312.8,1.13449472]
[1726572350973,1.54963,2312.9,2312.8,1.13449472]
[1726572351276,1.54963,2312.9,2312.8,2.38449472]
[1726572351871,0.5536,2312.9,2312.8,4.29615568]
[1726572352076,0.5536,2312.9,2312.8,2.81684472]
[1726572352372,0.5536,2312.9,2312.8,3.86377941]
[1726572352576,0.98593,2312.9,2312.8,2.38449472]
[1726572353574,3.64012,2313.0,2312.8,1.25]
[1726572353778,3.2078,2313.0,2312.9,1.25]
[1726572354069,3.64011,2313.0,2312.9,1.7842]
[1726572354276,3.2078,2313.0,2312.9,1.7842]
[1726572354576,3.64011,2313.0,2312.9,1.7842]
[1726572355269,3.64011,2313.0,2312.9,0.5342]
[1726572356975,3.64011,2313.0,2312.9,0.96653]
[1726572357276,3.2078,2313.0,2312.9,2.21653]
[1726572357464,1.0906,2313.2,2313.0,0.43229]
[1726572357465,0.43228,2313.2,2313.0,0.43229]
[1726572357777,0.43228,2313.2,2313.1,2.3327]
[1726572357969,0.43227,2313.3,2313.1,2.76499]
[1726572358169,0.43226,2313.3,2313.1,2.76498]
[1726572358373,0.43226,2313.3,2313.2,0.5276]
[1726572363380,0.43226,2313.3,2313.1,2.76498]
[1726572363576,0.43226,2313.3,2313.1,3.30838]
[1726572366182,0.43226,2313.3,2313.1,6.51618]
[1726572366777,0.5788,2313.4,2313.1,2.75768]
[1726572366778,1.65941,2313.4,2313.1,2.75768]
[1726572366976,0.43227,2313.3,2313.1,2.21428]
[1726572368075,0.43226,2313.3,2313.1,1.782]
[1726572368476,0.43226,2313.3,2313.1,2.21428]
[1726572368674,0.43226,2313.3,2313.2,0.5645]
[1726572369487,1.01105,2313.4,2313.2,0.99677]
[1726572369685,0.94902,2313.5,2313.3,1.68226]
[1726572369980,0.94902,2313.5,2313.3,2.24916]
[1726572370172,0.5669,2313.6,2313.5,0.43222]
[1726572370379,0.43219,2313.7,2313.5,1.68222]
[1726572370573,0.99909,2313.7,2313.6,0.5528]
[1726572371084,0.5669,2313.7,2313.6,0.985]
[1726572371286,0.5669,2313.7,2313.6,1.5191]
[1726572371675,0.5669,2313.7,2313.6,1.0869]
[1726572371676,0.99908,2313.7,2313.6,1.0869]
[1726572371875,0.5669,2313.7,2313.6,1.0869]
[1726572372380,0.99908,2313.7,2313.6,1.0869]
[1726572373582,0.99908,2313.7,2313.6,1.5191]
[1726572373583,0.5669,2313.7,2313.6,1.5191]
[1726572374076,0.99908,2313.7,2313.6,1.0869]
[1726572376497,0.5669,2313.7,2313.6,1.5191]
[1726572376874,0.5669,2313.7,2313.6,1.0869]
[1726572376875,0.99908,2313.7,2313.6,1.0869]
[1726572378181,0.5669,2313.7,2313.6,1.5191]
[1726572378374,0.99908,2313.7,2313.6,1.5191]
[1726572378580,0.99908,2313.7,2313.6,1.0869]
[1726572381479,0.99908,2313.7,2313.6,0.5528]
[1726572381680,0.99908,2313.7,2313.5,1.6822]
[1726572382080,0.99908,2313.7,2313.6,0.4322]
[1726572382587,0.5669,2313.7,2313.5,1.25]
[1726572382785,0.9991,2313.7,2313.6,0.4322]
[1726572386987,0.43222,2313.5,2313.4,3.64002]
[1726572387194,0.43222,2313.5,2313.0,3.44617417]
[1726572387195,1.51291,2313.3,2313.1,6.53798472]
[1726572387486,0.43229,2313.1,2313.0,2.81679472]
[1726572387692,0.43229,2313.1,2313.0,1.6823]
[1726572387892,0.97329,2313.2,2313.1,0.43229]
[1726572388095,0.97329,2313.2,2313.0,1.25]
[1726572388096,0.43229,2313.1,2313.0,1.6823]
[1726572388288,0.97328,2313.2,2313.1,0.43229]
[1726572388487,0.43229,2313.1,2313.0,1.6823]
[1726572388686,0.97329,2313.2,2313.0,1.25]
[1726572388889,0.43229,2313.1,2313.0,1.6823]
[1726572389993,0.43229,2313.1,2313.0,1.25]
[1726572390193,0.43229,2313.1,2312.9,2.62291472]
[1726572390396,0.43229,2313.1,2313.0,1.25]
[1726572390694,0.95159,2313.1,2313.0,1.25]
[1726572390896,0.95159,2313.1,2313.0,1.68231]
[1726572391100,0.95159,2313.1,2313.0,1.25]
[1726572394093,0.5193,2313.1,2313.0,1.68231]
[1726572394795,0.43227,2313.3,2313.1,0.43229]
[1726572394993,4.20405,2313.4,2313.2,1.7633]
[1726572395298,0.43226,2313.3,2313.2,1.7633]
[1726572395499,4.20405,2313.4,2313.2,2.19557]
[1726572395889,3.7718,2313.4,2313.2,1.7633]
[1726572396096,0.43226,2313.3,2313.2,1.7633]
[1726572400199,0.43226,2313.3,2313.2,1.25]
[1726572400502,0.43226,2313.3,2313.2,1.68227]
[1726572400702,0.43226,2313.3,2313.2,1.25]
[1726572400892,0.43226,2313.3,2313.2,1.68227]
[1726572401393,0.43226,2313.3,2313.2,1.25]
[1726572402298,0.43226,2313.3,2313.2,2.38449472]
[1726572402696,0.43226,2313.3,2313.2,2.81676472]
[1726572403904,0.43226,2313.3,2313.2,2.38449472]
[1726572404407,0.43226,2313.3,2313.2,2.81676472]
[1726572405405,0.43226,2313.3,2313.2,2.38449472]
[1726572405699,0.43226,2313.3,2313.2,2.81676472]
[1726572406898,0.43226,2313.3,2313.2,1.25]
[1726572407097,0.43226,2313.3,2313.2,1.68227]
[1726572407498,0.564,2313.4,2313.2,1.68227]
[1726572407803,0.43226,2313.3,2313.2,1.68227]
[1726572408204,1.0935,2313.5,2313.3,0.43226]
[1726572408403,1.52572,2313.5,2313.4,1.25]
[1726572413612,1.52572,2313.5,2313.4,1.68224]
[1726572415907,1.52572,2313.5,2313.4,1.25]
[1726572419808,0.101,2313.8,2313.4,1.25]
[1726572420008,0.95307,2313.8,2313.7,1.25]
[1726572420307,0.94528,2313.7,2313.6,1.25]
[1726572420702,0.94528,2313.7,2313.5,2.81670472]
[1726572420906,0.5406,2313.6,2313.5,2.81670472]
[1726572422513,0.5406,2313.6,2313.5,1.68221]
[1726572422707,0.5406,2313.6,2313.5,0.43221]
[1726572423110,0.43222,2313.5,2313.4,1.56672472]
[1726572423313,0.94802,2313.5,2313.4,1.13449472]
[1726572423520,0.94802,2313.5,2313.3,3.34773472]
[1726572423809,0.94802,2313.5,2313.4,0.43224]
[1726572424212,0.94802,2313.5,2313.4,1.56673472]
[1726572424814,0.94802,2313.5,2313.4,0.43224]
[1726572425011,0.94802,2313.5,2313.4,1.56673472]
[1726572425317,0.5158,2313.5,2313.4,1.56673472]
[1726572425827,0.94802,2313.5,2313.4,1.56673472]
[1726572428014,0.94802,2313.5,2313.4,2.07693472]
[1726572428817,0.94802,2313.5,2313.4,1.64469472]
[1726572429118,0.94802,2313.5,2313.4,0.94244]
[1726572430408,0.94802,2313.5,2313.4,0.5102]
[1726572430606,0.94802,2313.5,2313.4,0.94244]
[1726572432615,0.43224,2313.4,2313.3,2.21324]
[1726572433215,0.94803,2313.5,2313.4,0.43224]
[1726572436122,0.94803,2313.5,2313.4,3.04289201]
[1726572437313,0.43223,2313.5,2313.4,3.04289201]
[1726572437617,0.43223,2313.5,2313.4,3.04299244]
[1726572439220,0.43223,2313.5,2313.4,3.04244913]
[1726572440328,0.43223,2313.5,2313.4,3.6089568]
[1726572442326,0.43223,2313.5,2313.4,2.13269908]
[1726572442527,0.43223,2313.5,2313.4,3.60912921]
[1726572443431,0.43223,2313.5,2313.4,2.13269908]
[1726572444933,0.43223,2313.5,2313.4,0.43224]
[1726572445830,0.43221,2313.6,2313.5,0.43221]
[1726572446135,0.43221,2313.6,2313.5,1.68221]
[1726572446631,0.43222,2313.5,2313.4,0.43223]
[1726572448232,0.43221,2313.6,2313.5,0.4322]
[1726572449237,1.4747,2313.7,2313.6,0.4322]
[1726572449435,0.4322,2313.6,2313.5,1.68221]
[1726572451338,0.4322,2313.6,2313.5,0.43221]
[1726572452245,0.43222,2313.5,2313.4,1.68222]
[1726572452440,0.43224,2313.4,2313.3,0.531]
[1726572452644,0.98274,2313.4,2313.3,0.43225]
[1726572452845,5.27114,2313.4,2313.3,0.43225]
[1726572453955,4.19054,2313.4,2313.3,0.43225]
[1726572454156,0.98274,2313.4,2313.3,0.43225]
[1726572454759,0.98274,2313.4,2313.3,1.90868777]
[1726572454950,0.98274,2313.4,2313.3,4.293094]
[1726572458548,0.98274,2313.4,2313.3,4.29332343]
[1726572460557,5.27114,2313.4,2313.3,2.61107343]
[1726572460760,9.59354,2313.4,2313.3,1.13440623]
[1726572461562,1.51291,2313.3,2313.2,1.13440623]
[1726572461751,2.05081,2313.3,2313.2,2.61103229]
[1726572461947,2.05081,2313.3,2313.2,1.13440623]
[1726572462156,2.05081,2313.3,2313.2,2.6110371]
[1726572462454,2.05081,2313.3,2313.2,1.13440623]
[1726572462657,6.37401,2313.3,2313.2,1.13440623]
[1726572463153,6.37401,2313.3,2313.2,2.61086898]
[1726572463353,6.37401,2313.3,2313.2,3.04313898]
[1726572463664,6.37401,2313.3,2313.2,1.56667623]
[1726572463859,6.37401,2313.3,2313.2,1.13440623]
[1726572465353,6.37401,2313.3,2313.2,1.56667623]
[1726572466955,6.37401,2313.3,2313.2,0.43227]
[1726572470066,0.43227,2313.2,2313.1,1.68228]
[1726572473967,0.43227,2313.2,2313.1,4.85946141]
[1726572475467,4.19054,2313.4,2313.3,0.43226]
[1726572475667,4.69974,2313.4,2313.3,1.56598369]
[1726572475971,9.02214,2313.4,2313.3,1.56598369]
[1726572476570,9.02214,2313.4,2313.3,0.43226]
[1726572476760,10.10274,2313.4,2313.3,0.43226]
[1726572476966,0.43226,2313.3,2313.2,1.13372369]
[1726572477369,4.75546,2313.3,2313.2,1.13372369]
[1726572478171,4.75546,2313.3,2313.2,2.60966481]
[1726572478467,5.83611,2313.3,2313.2,0.43227]
[1726572478872,5.83611,2313.3,2313.2,1.56599369]
[1726572479273,5.83611,2313.3,2313.2,0.43227]
[1726572479464,5.83611,2313.3,2313.2,1.56599369]
[1726572479670,5.83611,2313.3,2313.2,0.43227]
[1726572481078,0.43227,2313.2,2313.1,2.81600369]
[1726572481272,1.51296,2313.2,2313.1,3.17773763]
[1726572481471,2.76296,2313.2,2313.1,1.13378527]
[1726572481780,1.51296,2313.2,2313.1,1.63938527]
[1726572481973,1.51296,2313.2,2313.1,0.5056]
[1726572482576,0.43227,2313.2,2313.1,0.93789]
[1726572482771,1.51296,2313.2,2313.1,0.93789]
[1726572483172,1.51296,2313.2,2313.1,0.5056]
[1726572485481,1.51296,2313.2,2313.1,0.93789]
[1726572486476,0.43229,2313.1,2313.0,0.9355]
[1726572486674,5.76793,2313.1,2313.0,0.9355]
[1726572486881,4.68719,2313.1,2313.0,0.9355]
[1726572488585,3.64009,2313.1,2313.0,0.9355]
[1726572489180,3.64009,2313.1,2313.0,3.54587746]
[1726572490289,3.64009,2313.1,2313.0,2.06928527]
[1726572491095,3.64009,2313.1,2313.0,1.63698527]
[1726572491387,4.72083,2313.1,2313.0,0.5032]
[1726572491587,5.22563,2313.1,2313.0,1.63698527]
[1726572491789,5.22563,2313.1,2313.0,0.5032]
[1726572491983,5.22563,2313.1,2313.0,0.93551]
[1726572492185,5.22563,2313.1,2313.0,0.5032]
[1726572492384,5.22563,2313.1,2313.0,1.63698527]
[1726572492584,5.22563,2313.1,2313.0,0.5032]
[1726572492795,5.22563,2313.1,2313.0,1.63698527]
[1726572492996,5.22563,2313.1,2313.0,0.5032]
[1726572493495,5.22563,2313.1,2313.0,0.93551]
[1726572493685,5.22563,2313.1,2313.0,0.5032]
[1726572495686,4.14489,2313.1,2313.0,0.5032]
[1726572496192,5.22563,2313.1,2313.0,0.5032]
[1726572498785,5.22563,2313.1,2313.0,0.93551]
[1726572499995,5.22563,2313.1,2313.0,0.5032]
[1726572503197,6.30637,2313.1,2313.0,0.5032]
[1726572503498,6.83517,2313.1,2313.0,0.5032]
[1726572503697,1.51317,2312.9,2312.8,1.13378527]
[1726572503993,1.51323,2312.8,2312.7,0.43237]
[1726572504197,0.43237,2312.7,2312.6,2.625094]
[1726572504492,0.43237,2312.7,2312.6,3.53254186]
[1726572504493,1.48617,2312.7,2312.6,3.53254186]
[1726572504688,2.5671,2312.7,2312.6,3.10017186]
[1726572504889,2.5671,2312.7,2312.6,1.133727]
[1726572505089,0.43239,2312.6,2312.5,2.086327]
[1726572505285,2.76337,2312.6,2312.5,1.133727]
[1726572505487,0.43241,2312.5,2312.4,1.133727]
[1726572505793,0.43242,2312.4,2312.3,2.098857]
[1726572505992,0.93392,2312.4,2312.3,0.96513]
[1726572508497,1.45512,2312.4,2312.3,0.96513]
[1726572508894,1.45512,2312.4,2312.3,0.5327]
[1726572509094,1.51356,2312.3,2312.2,1.133727]
[1726572509294,6.33596,2312.3,2312.2,1.133727]
[1726572509502,13.41708,2312.3,2312.2,0.56772701]
[1726572511394,16.12852,2311.9,2311.8,2.83537334]
[1726572512502,10.12852,2311.9,2311.8,2.83537334]
[1726572514098,10.64822,2311.9,2311.8,2.83537334]
[1726572514997,10.64822,2311.9,2311.5,0.5337]
[1726572514998,0.43257,2311.6,2311.5,0.5337]
[1726572515204,3.64037,2311.6,2311.5,0.5337]
[1726572515498,9.86566,2311.6,2311.2,0.101]
[1726572515706,9.86566,2311.6,2311.1,0.43266]
[1726572515707,0.43266,2311.2,2311.1,0.43266]
[1726572517796,0.43265,2311.3,2311.0,2.2503]
[1726572518098,0.5406,2311.5,2311.3,0.43263]
[1726572518099,0.43263,2311.4,2311.3,0.43263]
[1726572518303,0.43263,2311.3,2311.2,0.43264]
[1726572518506,0.43262,2311.4,2311.3,0.43263]
[1726572519104,0.43263,2311.3,2311.2,0.43263]
[1726572521208,0.43263,2311.3,2311.1,0.43265]
[1726572521394,0.43263,2311.3,2311.2,0.43265]
[1726572523904,0.43263,2311.3,2311.2,0.43264]
[1726572524510,3.2078,2311.4,2311.1,0.43265]
[1726572524803,0.43264,2311.3,2311.1,0.43265]
[1726572527301,4.89043,2311.4,2311.3,0.43263]
[1726572527508,0.43263,2311.4,2311.3,0.43263]
[1726572527704,0.4326,2311.5,2311.4,0.4326]
[1726572527914,0.43259,2311.5,2311.4,1.4665]
[1726572528310,0.43259,2311.6,2311.5,0.43259]
[1726572528802,0.43259,2311.5,2311.4,1.4665]
[1726572529213,0.43259,2311.5,2311.4,1.0339]
[1726572530417,0.43259,2311.5,2311.4,1.46651]
[1726572532511,3.64036,2311.7,2311.6,0.43257]
[1726572535416,0.43256,2311.7,2311.6,0.43257]
[1726572537825,0.43256,2311.7,2311.6,0.97427]
[1726572538530,0.43258,2311.6,2311.5,0.43257]
[1726572552335,0.43257,2311.7,2311.6,0.43256]
[1726572552535,3.2078,2311.8,2311.7,0.43256]
[1726572552732,0.43249,2312.1,2312.0,0.43249]
[1726572552926,0.43248,2312.2,2312.1,0.43248]
[1726572553328,6.4498443,2312.4,2312.2,0.43245]
[1726572553633,0.43241,2312.5,2312.3,1.90434]
[1726572554032,0.43241,2312.5,2312.4,1.25]
[1726572554642,0.43241,2312.5,2312.3,1.4719]
[1726572556040,1.68242,2312.4,2312.3,0.9735]
[1726572556343,4.89022,2312.4,2312.3,0.4884]
[1726572559943,5.97129,2312.4,2312.3,0.4884]
[1726572560141,1.08112,2312.3,2311.9,0.9957]
[1726572560442,0.4325,2312.0,2311.9,1.4282]
[1726572560640,1.6825,2312.0,2311.9,0.9957]
[1726572560846,0.43252,2311.9,2311.7,0.5038]
[1726572561340,4.4578,2312.0,2311.9,0.43252]
[1726572561341,4.89032,2312.0,2311.9,0.43252]
[1726572562536,3.64032,2312.0,2311.9,0.43252]
[1726572566447,0.43252,2312.0,2311.9,0.43252]
[1726572567256,0.43252,2311.9,2311.8,0.43252]
[1726572568447,4.28906,2312.0,2311.7,1.7538]
[1726572568747,0.43251,2312.0,2311.9,1.68252]
[1726572570745,0.43251,2312.0,2311.9,0.43252]
[1726572571143,0.43251,2312.0,2311.9,0.93012]
[1726572572151,0.43249,2312.1,2312.0,0.43249]
[1726572572547,4.28897,2312.2,2311.9,2.1801]
[1726572572548,0.4325,2312.0,2311.9,2.1801]
[1726572573053,0.43249,2312.1,2312.0,0.43249]
[1726572574444,0.4325,2312.0,2311.9,0.9301]
[1726572575845,3.2078,2312.2,2311.9,6.0732]
[1726572576048,3.64027,2312.2,2312.1,1.68248]
[1726572576355,0.43244,2312.3,2312.1,1.68247]
[1726572576552,0.43244,2312.3,2312.2,0.4996]
[1726572576853,0.43244,2312.3,2312.2,1.45066]
[1726572577150,0.43244,2312.3,2312.2,1.0182]
[1726572578359,0.43244,2312.3,2312.2,1.45066]
[1726572580747,1.51356,2312.3,2312.2,0.4996]
[1726572580951,0.43248,2312.1,2312.0,0.5002]
[1726572581160,3.64028,2312.1,2312.0,0.9327]
[1726572582158,0.43248,2312.1,2312.0,0.9327]
[1726572585259,0.43247,2312.2,2312.1,0.43247]
[1726572585450,0.43247,2312.2,2312.0,0.5002]
[1726572585655,0.43248,2312.1,2312.0,0.93269]
[1726572585852,3.64028,2312.1,2312.0,0.5002]
[1726572586158,3.64028,2312.1,2312.0,0.9327]
[1726572586948,3.64028,2312.1,2312.0,1.4475]
[1726572587559,3.64028,2312.1,2312.0,1.015]
[1726572587760,4.16538,2312.1,2312.0,1.4475]
[1726572588051,5.24659,2312.1,2312.0,1.015]
[1726572588553,5.24659,2312.1,2312.0,1.4475]
[1726572594663,4.72149,2312.1,2312.0,1.4475]
[1726572595463,3.64028,2312.1,2312.0,1.4475]
[1726572597371,0.43248,2312.1,2312.0,1.4475]
[1726572601177,1.08117,2312.2,2312.0,1.4475]
[1726572601178,0.43247,2312.2,2312.1,0.43245]
[1726572601468,3.8906843,2312.4,2312.3,0.43244]
[1726572601469,0.43243,2312.4,2312.3,0.43244]
[1726572602069,0.43243,2312.4,2312.3,1.43764]
[1726572602666,0.43246,2312.2,2312.1,1.69704958]
[1726572602863,0.43246,2312.2,2312.1,0.5106]
[1726572603069,0.94536,2312.3,2312.2,0.43246]
[1726572604069,1.51362,2312.2,2312.1,0.5106]
[1726572604372,0.43248,2312.1,2312.0,0.9974]
[1726572605174,3.64028,2312.2,2312.0,0.9974]
[1726572605471,0.43248,2312.2,2312.1,0.43248]
[1726572605877,0.5129,2312.3,2312.0,1.42989]
[1726572605878,0.43248,2312.1,2312.0,1.42989]
[1726572606172,0.43248,2312.1,2312.0,0.9974]
[1726572606778,0.43248,2312.1,2312.0,0.9151]
[1726572607571,0.43248,2312.1,2312.0,0.4826]
[1726572608171,0.43248,2312.1,2312.0,0.9151]
[1726572609371,3.2420943,2312.1,2312.0,0.9151]
[1726572609675,3.2420943,2312.1,2312.0,0.4826]
[1726572609976,3.2574043,2312.1,2312.0,0.4826]
[1726572610174,1.51369,2312.1,2312.0,0.4826]
[1726572610383,3.64028,2312.2,2312.1,0.43248]
[1726572610871,0.43248,2312.1,2312.0,0.91509]
[1726572611080,3.25734466,2312.1,2312.0,0.91509]
[1726572611280,3.25733358,2312.1,2312.0,0.91509]
[1726572611474,0.43248,2312.1,2312.0,0.91509]
[1726572612584,0.43248,2312.1,2312.0,0.4826]
[1726572613275,0.43252,2311.9,2311.8,0.93623]
[1726572613577,2.82443356,2312.0,2311.9,0.43252]
[1726572613776,2.82443356,2312.1,2312.0,0.4325]
[1726572614574,2.82443356,2312.1,2312.0,0.9432]
[1726572616476,0.43247,2312.2,2312.1,0.43248]
[1726572624883,3.64027,2312.2,2312.1,0.43248]
[1726572625788,1.51363,2312.2,2312.1,0.43248]
[1726572625991,4.72143,2312.2,2312.1,0.43248]
[1726572628099,0.43248,2312.1,2312.0,0.94318]
[1726572629495,1.51369,2312.1,2312.0,0.94318]
[1726572629801,2.01129,2312.1,2312.0,0.94318]
[1726572632991,2.01129,2312.1,2312.0,2.07802819]
[1726572633699,1.51369,2312.1,2312.0,2.07802819]
[1726572634907,0.43248,2312.1,2312.0,2.07802819]
[1726572635403,1.51369,2312.1,2312.0,2.07802819]
[1726572636100,2.5949,2312.1,2312.0,1.13484819]
[1726572638299,0.43252,2311.9,2311.8,1.44663]
[1726572647719,0.43252,2312.0,2311.9,0.4325]
[1726572647917,0.4325,2312.1,2312.0,0.4325]
[1726572648815,0.4325,2312.1,2312.0,0.948]
[1726572654324,0.4325,2312.1,2312.0,2.08284819]
[1726572654516,3.25557018,2312.1,2312.0,0.948]
[1726572659617,0.4325,2312.1,2312.0,0.948]
[1726572659818,1.51371,2312.1,2312.0,0.948]
[1726572660015,1.51371,2312.1,2312.0,0.5155]
[1726572660215,0.4325,2312.1,2312.0,0.948]
[1726572661820,2.8238185,2312.1,2312.0,0.948]
[1726572662120,2.8238185,2312.4,2312.1,1.08121]
[1726572662429,2.8238185,2312.6,2312.3,1.25]
[1726572662630,0.43239,2312.7,2312.4,1.67226591]
[1726572662922,0.43239,2312.6,2312.4,1.67226591]
[1726572663514,0.43239,2312.6,2312.4,0.97001]
[1726572663715,4.5722185,2312.8,2312.4,0.5376]
[1726572663916,6.4639585,2312.9,2312.7,0.43237]
[1726572664126,6.4639585,2312.9,2312.8,1.5748]
[1726572664323,6.4639585,2312.9,2312.8,2.8248]
[1726572664324,3.2078,2312.9,2312.8,2.8248]
[1726572664532,3.2078,2312.9,2312.8,3.25715]
[1726572666214,3.64013,2312.9,2312.8,2.8248]
[1726572666429,3.64013,2312.9,2312.4,6.54114875]
[1726572666430,0.43241,2312.5,2312.4,1.13466591]